lending/lending_fUSD_20250913
["ID","MTS","AMOUNT","RATE_DAILY","PERIOD"]
[385341841,1757788609296,1967.0,0.00027367,120]
[385341842,1757788609741,1967.0,0.0002874,120]
[385341843,1757788610458,1967.0,0.0002873,120]
[385341844,1757788610651,1967.0,0.0002872,120]
[385341845,1757788611133,1967.0,0.000298,120]
[385341846,1757788611560,1967.0,0.0002979,120]
[385341847,1757788654498,1000.0,0.00027397,120]
[385341848,1757788654758,1000.0,0.00027671,120]
[385341849,1757788655062,1000.0,0.00027945,120]
[385341850,1757788655320,1000.0,0.00028219,120]
[385341851,1757788655619,1000.0,0.00028493,120]
[385341852,1757788655884,1000.0,0.00028767,120]
[385341853,1757788656193,1000.0,0.00029041,120]
[385341854,1757788656458,1000.0,0.00029315,120]
[385341855,1757788656767,1000.0,0.00029589,120]
[385341856,1757788657064,1000.0,0.00029863,120]
[385341857,1757788657334,1000.0,0.00030136,120]
[385341858,1757788664994,400.0,0.00027397,120]
[385341859,1757788665281,400.0,0.00027671,120]
[385341860,1757788665833,400.0,0.00027945,120]
[385341861,1757788669704,506.16,0.00030137,120]
[385341862,1757788693030,161.84724406,0.00029742,15]
[385341863,1757788722087,150.0,0.000301,120]
[385341864,1757788753165,3245.73,0.00030137,120]
[385341865,1757788808136,311.0,0.00027749,120]
[385341866,1757788809421,311.0,0.00029137,120]
[385341867,1757788822440,1500.0,0.00027,120]
[385341868,1757788822534,1500.0,0.000286,120]
[385341869,1757788822943,166.13,0.00027397,80]
[385341870,1757788844814,150.0,0.000301,120]
[385341871,1757788964918,150.0,0.000301,120]
[385341872,1757789000260,650.0,0.00030136,120]
[385341873,1757789000536,650.0,0.00030136,120]
[385341874,1757789000808,650.0,0.00030136,120]
[385341875,1757789001076,650.0,0.00030136,120]
[385341876,1757789001538,650.0,0.00030136,120]
[385341877,1757789001604,650.0,0.00030136,120]
[385341878,1757789001977,650.0,0.00030136,120]
[385341879,1757789002183,650.0,0.00030136,120]
[385341880,1757789002458,650.0,0.00030136,120]
[385341881,1757789002727,650.0,0.00030136,120]
[385341882,1757789002977,650.0,0.00030136,120]
[385341883,1757789003991,2000.0,0.00024658,15]
[385341884,1757789004378,2000.0,0.00024658,15]
[385341885,1757789004818,2000.0,0.00024658,15]
[385341886,1757789006415,2000.0,0.00024658,15]
[385341887,1757789006648,2000.0,0.00024658,15]
[385341888,1757789008022,2000.0,0.00024658,15]
[385341889,1757789008281,2000.0,0.00024658,15]
[385341890,1757789008416,2000.0,0.00024658,15]
[385341891,1757789008743,2000.0,0.00024658,15]
[385341892,1757789063633,2478.64603217,0.000301,120]
[385341893,1757789108072,187.0,0.00028029,120]
[385341894,1757789109088,187.0,0.00029431,120]
[385341895,1757789113297,232.41,0.00030136,120]
[385341897,1757789259472,161.84724406,0.00029275,15]
[385341898,1757789310100,1500.0,0.00024838,120]
[385341899,1757789329838,393.0,0.0002737,120]
[385341900,1757789330038,393.0,0.0002736,120]
[385341901,1757789330497,393.0,0.0002735,120]
[385341902,1757789330958,393.0,0.0002847,120]
[385341903,1757789331406,393.0,0.0002846,120]
[385341904,1757789331853,393.0,0.0002845,120]
[385341905,1757789332299,393.0,0.0002956,120]
[385341906,1757789332754,393.0,0.0002955,120]
[385341907,1757789333971,1227.0,0.0003013,120]
[385341908,1757789337795,1866.0,0.0003013,120]
[385341909,1757789349172,-1932.14123483,0.00021637,2]
[385341910,1757789349196,-2000.0,0.00021674,3]
[385341911,1757789349221,-300.0,0.00021711,2]
[385341912,1757789349243,-178.19334638,0.00021737,2]
[385341913,1757789349265,-300.0,0.00021774,2]
[385341914,1757789349287,-134.78963279,0.00021774,2]
[385341915,1757789349397,386.76175863,0.0003013,120]
[385341916,1757789361175,640.0,0.00024933,120]
[385341917,1757789361581,640.0,0.00028049,120]
[385341918,1757789363548,2000.0,0.00024933,120]
[385341920,1757789400159,462.0,0.0003013,120]
[385341921,1757789402832,293.0,0.0003013,120]
[385341922,1757789409909,160.0,0.0002768,120]
[385341923,1757789411212,160.0,0.00029064,120]
[385341930,1757789431855,-195.0,0.00021655,2]
[385341931,1757789431865,-2000.0,0.00021668,3]
[385341932,1757789431875,-195.0,0.00021668,2]
[385341933,1757789431884,-300.0,0.00021681,2]
[385341934,1757789431894,-300.0,0.00021681,2]
[385341935,1757789431903,-195.0,0.00021706,2]
[385341936,1757789431914,-2000.0,0.00021715,3]
[385341937,1757789431925,-68.56610262,0.00021715,3]
[385341938,1757789432030,-1258.07907364,0.00021715,3]
[385341939,1757789432042,-570.84080728,0.00021715,3]
[385341940,1757789432071,-102.51401646,0.00021715,3]
[385341941,1757789432081,-300.0,0.00021761,2]
[385341942,1757789432091,-300.0,0.00021761,2]
[385341943,1757789432100,-195.1227828,0.00021761,2]
[385341944,1757789432111,-104.8772172,0.00021761,2]
[385341945,1757789432121,-165.21036721,0.00021774,2]
[385341946,1757789432130,-300.0,0.00021774,2]
[385341947,1757789432140,-249.10428603,0.000229,2]
[385341964,1757789432503,-141.89571397,0.000229,2]
[385341966,1757789432512,-332.0,0.00023347,2]
[385341968,1757789432521,-1200.0,0.00023404,2]
[385341970,1757789432530,-960.0,0.00023405,2]
[385341972,1757789432539,-619.0,0.00023521,2]
[385341974,1757789432548,-300.0,0.000238,2]
[385341976,1757789432557,-2.71059668,0.00023801,2]
[385341982,1757789437927,-1803.59883058,0.00023801,2]
[385342072,1757789439790,-693.69057274,0.00023801,2]
[385342073,1757789439799,-2500.0,0.00023801,2]
[385342074,1757789439809,-2500.0,0.00023801,2]
[385342075,1757789439818,-2500.0,0.00023801,2]
[385342076,1757789439828,-2500.0,0.00023801,2]
[385342077,1757789439838,-1258.81437875,0.00023801,3]
[385342078,1757789439933,-741.18562125,0.00023801,3]
[385342079,1757789439943,-195.0,0.00023801,2]
[385342080,1757789439952,-500.0,0.00023821,2]
[385342081,1757789439962,-500.0,0.00023821,2]
[385342082,1757789439971,-205.77294761,0.00023821,2]
[385342083,1757789440055,-294.22705239,0.00023821,2]
[385342084,1757789440064,-500.0,0.00023821,2]
[385342085,1757789440074,-500.0,0.00023821,2]
[385342086,1757789440083,-300.0,0.00023821,2]
[385342087,1757789440092,-300.0,0.00023821,2]
[385342088,1757789440101,-150.0,0.00023821,2]
[385342089,1757789440111,-2000.0,0.00023821,3]
[385342090,1757789440120,-195.0,0.00023821,2]
[385342091,1757789440129,-300.0,0.00023852,2]
[385342092,1757789440138,-150.0,0.00023882,2]
[385342093,1757789440147,-692.0,0.00024014,2]
[385342094,1757789440157,-212.99211257,0.00024015,3]
[385342096,1757789440166,-160.0,0.00024015,3]
[385342098,1757789440175,-515.60081738,0.00024015,3]
[385342099,1757789440185,-160.0,0.00024015,3]
[385342100,1757789440194,-383.0,0.0002408,2]
[385342101,1757789440203,-151.03,0.00024379,2]
[385342102,1757789440212,-150.0,0.00024608,4]
[385342104,1757789440224,-150.0,0.00024608,4]
[385342106,1757789440233,-150.0,0.00024608,4]
[385342107,1757789440243,-150.0,0.00024608,4]
[385342108,1757789440259,-150.0,0.00024608,4]
[385342109,1757789440268,-150.0,0.00024608,4]
[385342110,1757789440278,-150.0,0.00024608,4]
[385342111,1757789440287,-150.0,0.00024608,4]
[385342112,1757789440297,-150.0,0.00024608,4]
[385342113,1757789440307,-150.0,0.00024608,4]
[385342114,1757789440315,-150.0,0.00024608,4]
[385342115,1757789440325,-150.0,0.00024608,4]
[385342116,1757789440334,-3000.0,0.00024608,2]
[385342117,1757789440343,-250.0,0.0002469,2]
[385342118,1757789440352,-204.54,0.0002484,2]
[385342119,1757789440361,-1195.19,0.00024848,2]
[385342120,1757789440371,-183.46,0.00024875,2]
[385342121,1757789440380,-4733.92681101,0.000249,2]
[385342122,1757789440389,-379.72,0.00024928,2]
[385342123,1757789440398,-500.0,0.00024932,2]
[385342124,1757789440408,-500.0,0.00024932,2]
[385342125,1757789440418,-500.0,0.00024932,2]
[385342126,1757789440427,-500.0,0.00024932,2]
[385342127,1757789440436,-500.0,0.00024932,2]
[385342128,1757789440445,-500.0,0.00024932,2]
[385342129,1757789440454,-500.0,0.00024932,2]
[385342130,1757789440463,-500.0,0.00024932,2]
[385342131,1757789440481,-258.61769803,0.00024932,2]
[385342132,1757789440492,-238.26567642,0.00024932,2]
[385342133,1757789440501,-500.0,0.00024932,2]
[385342134,1757789440511,-323.813182,0.00024932,2]
[385342135,1757789440520,-6711.8,0.00024933,2]
[385342136,1757789440531,-247.68,0.00024952,2]
[385342137,1757789440541,-178.19334637,0.0002498,2]
[385342138,1757789440550,-4031.02,0.00024994,2]
[385342139,1757789440560,-150.0,0.00025005,7]
[385342140,1757789440570,-164.12,0.0002507,2]
[385342141,1757789440579,-160.0,0.0002524,2]
[385342142,1757789440590,-276.87818321,0.0002524,2]
[385342143,1757789440600,-277.35679052,0.0002524,2]
[385342144,1757789440610,-174.61919142,0.0002524,2]
[385342145,1757789440619,-375.0,0.0002527,2]
[385342146,1757789440629,-150.0,0.00025292,4]
[385342147,1757789440639,-500.0,0.00025315,2]
[385342148,1757789440648,-185.86,0.0002532,2]
[385342149,1757789440659,-1680.0,0.00025513,2]
[385342150,1757789440669,-150.0,0.0002552,4]
[385342151,1757789440679,-164.06,0.00025527,2]
[385342152,1757789440690,-572.14,0.00025532,2]
[385342153,1757789440700,-204.54,0.00025772,2]
[385342154,1757789440709,-420.0,0.00025815,2]
[385342155,1757789440719,-150.0,0.00025975,4]
[385342156,1757789440728,-150.0,0.00025975,4]
[385342157,1757789440738,-150.0,0.00025975,4]
[385342158,1757789440747,-150.0,0.00025975,4]
[385342159,1757789440757,-150.0,0.00025975,4]
[385342160,1757789440767,-163.67,0.00026066,2]
[385342161,1757789440785,-379.72,0.00026175,2]
[385342162,1757789440796,-710.2728951,0.00026234,2]
[385342163,1757789440811,-257.0,0.0002625,2]
[385342164,1757789440820,-710.2728951,0.00026334,2]
[385342165,1757789440830,-257.0,0.00026349,2]
[385342166,1757789440840,-1171.0,0.00026388,7]
[385342167,1757789440851,-1171.0,0.00026421,2]
[385342168,1757789440860,-150.0,0.00026431,4]
[385342169,1757789440870,-150.0,0.00026448,2]
[385342170,1757789440879,-367.0,0.0002645,2]
[385342171,1757789440889,-257.0,0.00026534,2]
[385342172,1757789440898,-257.0,0.00026592,2]
[385342173,1757789440908,-202.2211901,0.00026609,2]
[385342174,1757789440919,-287.61899177,0.00026609,2]
[385342175,1757789440930,-150.0,0.00026659,4]
[385342176,1757789440939,-212.99211257,0.00026669,2]
[385342177,1757789440949,-150.0,0.00026677,2]
[385342178,1757789440959,-500.0,0.00026677,2]
[385342179,1757789440968,-150.0,0.00026677,2]
[385342180,1757789440978,-150.0,0.00026677,2]
[385342181,1757789440988,-150.0,0.00026677,2]
[385342182,1757789441000,-150.0,0.00026677,2]
[385342183,1757789441010,-150.0,0.00026677,2]
[385342184,1757789441019,-150.0,0.00026677,2]
[385342185,1757789441029,-150.0,0.00026677,2]
[385342186,1757789441039,-150.0,0.00026677,2]
[385342187,1757789441048,-500.0,0.00026677,2]
[385342188,1757789441058,-500.0,0.00026677,2]
[385342189,1757789441068,-150.0,0.00026677,2]
[385342190,1757789441078,-150.0,0.00026677,2]
[385342191,1757789441087,-150.0,0.00026677,2]
[385342192,1757789441097,-150.0,0.00026677,2]
[385342193,1757789441107,-500.0,0.00026677,2]
[385342194,1757789441116,-150.0,0.00026677,2]
[385342195,1757789441126,-150.0,0.00026677,2]
[385342196,1757789441136,-150.0,0.00026677,2]
[385342197,1757789441145,-150.0,0.00026677,2]
[385342198,1757789441154,-150.0,0.00026677,2]
[385342199,1757789441164,-150.0,0.00026677,2]
[385342200,1757789441174,-150.0,0.00026677,2]
[385342201,1757789441183,-150.0,0.00026677,2]
[385342202,1757789441193,-150.06611077,0.00026677,2]
[385342203,1757789441203,-150.0,0.00026677,2]
[385342204,1757789441213,-150.70483784,0.00026677,2]
[385342205,1757789441223,-500.0,0.00026677,2]
[385342206,1757789441233,-150.0,0.00026677,2]
[385342207,1757789441243,-150.0,0.00026677,2]
[385342208,1757789441254,-150.0,0.00026677,2]
[385342209,1757789441264,-500.0,0.00026677,2]
[385342210,1757789441275,-500.0,0.00026677,2]
[385342211,1757789441285,-150.0,0.00026677,2]
[385342212,1757789441295,-150.0,0.00026677,2]
[385342213,1757789441306,-150.0,0.00026677,2]
[385342214,1757789441315,-150.0,0.00026677,2]
[385342215,1757789441325,-419.0,0.00026677,2]
[385342216,1757789441335,-500.0,0.00026677,2]
[385342217,1757789441345,-150.0,0.00026677,2]
[385342218,1757789441355,-160.0,0.00026685,2]
[385342219,1757789441365,-515.60081738,0.00026685,2]
[385342220,1757789441375,-160.0,0.00026688,2]
[385342221,1757789441385,-160.0,0.00026688,2]
[385342222,1757789441395,-204.54,0.00026703,2]
[385342223,1757789441405,-200.0,0.00026705,2]
[385342224,1757789441415,-187.3205,0.00026851,2]
[385342225,1757789441424,-557.82339789,0.00026893,2]
[385342226,1757789441434,-6965.5027,0.000269,2]
[385342227,1757789441444,-156.34023609,0.0002692,2]
[385342228,1757789441454,-151.0,0.0002692,2]
[385342229,1757789441464,-2805.08287318,0.0002692,2]
[385342230,1757789441474,-290.0,0.00026921,2]
[385342231,1757789441484,-73418.68253915,0.00026925,2]
[385342232,1757789441593,-710.2728951,0.00026837,2]
[385342233,1757789441603,-2720.00511943,0.00026925,2]
[385342234,1757789441617,-9831.88738869,0.00026925,2]
[385342235,1757789441628,-4058.01279462,0.00026932,2]
[385342253,1757789443979,-2912.4715,0.00026605,2]
[385342254,1757789443989,-13069.69423416,0.00026932,2]
[385342255,1757789444002,-168.24897222,0.00026935,2]
[385342256,1757789444013,-85970.57504727,0.00026938,2]
[385342257,1757789444023,-391.48075991,0.00026939,2]
[385342258,1757789444034,-85970.57504727,0.00026941,2]
[385342259,1757789444043,-5360.99332222,0.00026943,2]
[385342260,1757789444053,-500.0,0.00026951,2]
[385342261,1757789444063,-154.73310895,0.00026951,2]
[385342262,1757789444072,-150.0,0.00026951,2]
[385342263,1757789444082,-150.0,0.00026951,2]
[385342264,1757789444091,-150.0,0.00026951,2]
[385342265,1757789444101,-150.0,0.00026951,2]
[385342266,1757789444110,-150.0,0.00026951,2]
[385342267,1757789444120,-500.0,0.00026951,2]
[385342268,1757789444129,-500.0,0.00026951,2]
[385342269,1757789444139,-151.5433957,0.00026951,2]
[385342270,1757789444148,-150.0,0.00026951,2]
[385342271,1757789444158,-500.0,0.00026951,2]
[385342272,1757789444168,-150.0,0.00026951,2]
[385342273,1757789444177,-200.0,0.00026951,2]
[385342274,1757789444187,-150.0,0.00026951,2]
[385342275,1757789444196,-150.0,0.00026951,2]
[385342276,1757789444206,-150.0,0.00026951,2]
[385342277,1757789444215,-150.0,0.00026951,2]
[385342278,1757789444225,-500.0,0.00026951,2]
[385342280,1757789444235,-150.0,0.00026951,2]
[385342282,1757789444245,-500.0,0.00026951,2]
[385342284,1757789444255,-500.0,0.00026951,2]
[385342285,1757789444264,-150.0,0.00026951,2]
[385342286,1757789444274,-150.0,0.00026951,2]
[385342287,1757789444284,-150.0,0.00026951,2]
[385342289,1757789444294,-419.0,0.00026951,2]
[385342291,1757789444304,-500.0,0.00026951,2]
[385342292,1757789444314,-150.0,0.00026951,2]
[385342294,1757789444324,-391.48075991,0.00026951,2]
[385342295,1757789444334,-150.75152373,0.00026951,2]
[385342296,1757789444344,-17127.70702878,0.00026951,2]
[385342297,1757789444353,-328.15717315,0.00026954,2]
[385342298,1757789444363,-168.24897222,0.00026955,2]
[385342299,1757789444373,-12754.96718104,0.00026956,2]
[385342300,1757789444386,-391.48075991,0.00026956,2]
[385342301,1757789444396,-17127.70702878,0.00026957,2]
[385342302,1757789444406,-25420.82890827,0.00026963,2]
[385342303,1757789444416,-3060.63336847,0.00026971,2]
[385342304,1757789444426,-391.48075991,0.00026979,2]
[385342305,1757789444435,-5360.99332222,0.00026981,2]
[385342306,1757789444445,-12754.96718104,0.00026985,2]
[385342307,1757789444455,-328.15717315,0.00026987,2]
[385342308,1757789444464,-5360.99332222,0.00026989,2]
[385342309,1757789444474,-17127.70702878,0.00026995,2]
[385342310,1757789444484,-12754.96718104,0.00026995,2]
[385342311,1757789444493,-328.15717315,0.00026998,2]
[385342312,1757789444502,-167.0,0.00027,7]
[385342313,1757789444512,-200.0,0.00027,2]
[385342314,1757789444521,-8697.17,0.00027,2]
[385342315,1757789444531,-290.0,0.00027007,2]
[385342316,1757789444540,-1449.52,0.0002701,2]
[385342317,1757789444550,-290.0,0.00027099,2]
[385342318,1757789444559,-514.0,0.00027137,2]
[385342319,1757789444568,-1159.2617,0.00027146,2]
[385342320,1757789444577,-12512.15908607,0.00027146,2]
[385342321,1757789444586,-202.0,0.0002715,2]
[385342322,1757789444595,-2000.0,0.00027154,2]
[385342323,1757789444604,-1120.575,0.00027154,2]
[385342324,1757789444614,-1000.0,0.00027197,2]
[385342325,1757789444623,-2500.0,0.00027197,2]
[385342326,1757789444632,-158.14847826,0.00027197,2]
[385342327,1757789444641,-1923.0,0.00027205,2]
[385342328,1757789444651,-161.84724407,0.00027205,2]
[385342329,1757789444660,-683.1628,0.00027207,2]
[385342330,1757789444670,-158.14847825,0.00027215,2]
[385342331,1757789444679,-5000.0,0.00027217,2]
[385342332,1757789444689,-466.98147139,0.00027217,2]
[385342333,1757789444698,-1178.0,0.00027221,2]
[385342334,1757789444708,-12512.15908601,0.00027224,2]
[385342335,1757789444717,-190.45986373,0.00027225,2]
[385342336,1757789444727,-200.0,0.00027225,2]
[385342337,1757789444736,-150.0,0.00027225,2]
[385342338,1757789444745,-500.0,0.00027225,2]
[385342339,1757789444755,-500.0,0.00027225,2]
[385342340,1757789444764,-200.0,0.00027225,2]
[385342341,1757789444774,-289.80429381,0.00027225,2]
[385342342,1757789444783,-150.0,0.00027225,2]
[385342343,1757789444792,-150.0,0.00027225,2]
[385342344,1757789444802,-150.0,0.00027225,2]
[385342345,1757789444811,-150.0,0.00027225,2]
[385342346,1757789444821,-500.0,0.00027225,2]
[385342347,1757789444830,-150.0,0.00027225,2]
[385342348,1757789444839,-500.0,0.00027225,2]
[385342349,1757789444848,-200.0,0.00027225,2]
[385342350,1757789444859,-150.0,0.00027225,2]
[385342351,1757789444868,-150.0,0.00027225,2]
[385342352,1757789444877,-419.0,0.00027225,2]
[385342353,1757789444887,-350.0,0.00027225,2]
[385342354,1757789444896,-202.13459716,0.00027225,2]
[385342355,1757789444906,-712.42096164,0.00027227,2]
[385342356,1757789444918,-294.21744611,0.00027229,2]
[385342357,1757789444928,-500.0,0.00027229,2]
[385342358,1757789444937,-500.0,0.00027229,2]
[385342359,1757789444947,-397.27358721,0.00027229,2]
[385342360,1757789444960,-469.60864641,0.00027229,2]
[385342361,1757789444969,-151.0,0.00027237,7]
[385342362,1757789444979,-151.0,0.00027237,7]
[385342363,1757789444988,-162.934578,0.00027237,7]
[385342364,1757789444999,-151.0,0.00027237,7]
[385342365,1757789445008,-151.0,0.00027237,7]
[385342366,1757789445018,-278.061397,0.00027237,7]
[385342367,1757789445029,-151.0,0.00027237,7]
[385342368,1757789445039,-278.061397,0.00027237,7]
[385342369,1757789445049,-151.0,0.00027237,7]
[385342370,1757789445061,-151.0,0.00027237,7]
[385342371,1757789445074,-278.061397,0.00027237,7]
[385342372,1757789445085,-151.0,0.00027237,7]
[385342373,1757789445095,-278.061397,0.00027237,7]
[385342374,1757789445105,-245.235951,0.00027237,7]
[385342375,1757789445115,-151.0,0.00027237,7]
[385342376,1757789445126,-151.0,0.00027237,7]
[385342377,1757789445136,-151.0,0.00027237,7]
[385342378,1757789445146,-151.0,0.00027237,7]
[385342379,1757789445156,-269.266817,0.00027237,7]
[385342380,1757789445165,-230.658461,0.00027237,7]
[385342381,1757789445174,-230.658461,0.00027237,7]
[385342382,1757789445183,-230.658461,0.00027237,7]
[385342383,1757789445192,-230.658461,0.00027237,7]
[385342384,1757789445201,-925.518111,0.00027237,7]
[385342385,1757789445210,-925.518111,0.00027237,7]
[385342386,1757789445219,-925.518111,0.00027237,7]
[385342387,1757789445228,-151.0,0.00027237,7]
[385342388,1757789445238,-925.518111,0.00027237,7]
[385342389,1757789445247,-175.123952,0.00027237,7]
[385342390,1757789445256,-175.123952,0.00027237,7]
[385342391,1757789445265,-236.039636,0.00027237,7]
[385342392,1757789445275,-175.123952,0.00027237,7]
[385342393,1757789445284,-175.123952,0.00027237,7]
[385342394,1757789445294,-151.0,0.00027237,7]
[385342395,1757789445303,-252.923026,0.00027237,7]
[385342396,1757789445312,-252.923026,0.00027237,7]
[385342397,1757789445321,-252.923026,0.00027237,7]
[385342398,1757789445330,-252.923026,0.00027237,7]
[385342399,1757789445339,-151.0,0.00027237,7]
[385342400,1757789445349,-151.0,0.00027237,7]
[385342401,1757789445358,-151.0,0.00027237,7]
[385342402,1757789445367,-151.0,0.00027237,7]
[385342403,1757789445376,-151.0,0.00027237,7]
[385342404,1757789445385,-151.0,0.00027237,7]
[385342405,1757789445394,-151.0,0.00027237,7]
[385342406,1757789445403,-151.0,0.00027237,7]
[385342407,1757789445412,-151.0,0.00027237,7]
[385342408,1757789445422,-151.0,0.00027237,7]
[385342409,1757789445431,-151.0,0.00027237,7]
[385342410,1757789445440,-151.0,0.00027237,7]
[385342411,1757789445449,-151.0,0.00027237,7]
[385342412,1757789445458,-151.0,0.00027237,7]
[385342413,1757789445467,-151.0,0.00027237,7]
[385342414,1757789445477,-151.0,0.00027237,7]
[385342415,1757789445486,-151.0,0.00027237,7]
[385342416,1757789445495,-276.645201,0.00027237,7]
[385342417,1757789445504,-151.0,0.00027237,7]
[385342418,1757789445514,-151.0,0.00027237,7]
[385342419,1757789445523,-151.0,0.00027237,7]
[385342420,1757789445532,-151.0,0.00027237,7]
[385342421,1757789445542,-151.0,0.00027237,7]
[385342422,1757789445551,-151.0,0.00027237,7]
[385342423,1757789445560,-151.0,0.00027237,7]
[385342424,1757789445569,-151.0,0.00027237,7]
[385342425,1757789445579,-151.0,0.00027237,7]
[385342426,1757789445588,-167.31588,0.00027237,7]
[385342427,1757789445598,-151.0,0.00027237,7]
[385342428,1757789445608,-151.0,0.00027237,7]
[385342430,1757789445617,-151.0,0.00027237,7]
[385342431,1757789445627,-151.0,0.00027237,7]
[385342432,1757789445636,-2222.920721,0.00027237,7]
[385342433,1757789445645,-2222.920721,0.00027237,7]
[385342434,1757789445655,-2222.920721,0.00027237,7]
[385342436,1757789445665,-2222.920721,0.00027237,7]
[385342438,1757789445674,-698.723434,0.00027237,7]
[385342440,1757789445684,-151.0,0.00027237,7]
[385342443,1757789445693,-698.723434,0.00027237,7]
[385342445,1757789445702,-698.723434,0.00027237,7]
[385342447,1757789445711,-698.723434,0.00027237,7]
[385342449,1757789445720,-156.429343,0.00027237,7]
[385342450,1757789445729,-249.711772,0.00027237,7]
[385342451,1757789445739,-151.0,0.00027237,7]
[385342452,1757789445748,-151.0,0.00027237,7]
[385342453,1757789445757,-5566.73710488,0.00027237,2]
[385342454,1757789445766,-1295.9,0.0002724,2]
[385342455,1757789445776,-15642.7167992,0.00027244,2]
[385342456,1757789445785,-154.313951,0.00027244,7]
[385342457,1757789445794,-151.0,0.00027244,7]
[385342458,1757789445803,-731.976443,0.00027244,7]
[385342459,1757789445814,-731.976443,0.00027244,7]
[385342460,1757789445824,-731.976443,0.00027244,7]
[385342461,1757789445833,-731.976443,0.00027244,7]
[385342462,1757789445843,-160.473733,0.00027244,7]
[385342463,1757789445853,-151.0,0.00027244,7]
[385342464,1757789445863,-151.0,0.00027244,7]
[385342465,1757789445872,-151.0,0.00027244,7]
[385342466,1757789445882,-175.394008,0.00027244,7]
[385342467,1757789445892,-151.0,0.00027244,7]
[385342468,1757789445902,-151.0,0.00027244,7]
[385342469,1757789445911,-15642.7167992,0.00027249,2]
[385342470,1757789445921,-80359.92958319,0.0002725,2]
[385342471,1757789445930,-151.0,0.0002725,7]
[385342472,1757789445940,-151.0,0.0002725,7]
[385342473,1757789445949,-151.0,0.0002725,7]
[385342474,1757789445958,-151.0,0.0002725,7]
[385342475,1757789445971,-278.061397,0.0002725,7]
[385342476,1757789445981,-151.0,0.0002725,7]
[385342477,1757789445990,-278.061397,0.0002725,7]
[385342478,1757789445999,-151.0,0.0002725,7]
[385342479,1757789446009,-151.0,0.0002725,7]
[385342480,1757789446019,-278.061397,0.0002725,7]
[385342481,1757789446238,-151.0,0.0002725,7]
[385342483,1757789446252,-278.061397,0.0002725,7]
[385342485,1757789446262,-151.0,0.0002725,7]
[385342487,1757789446272,-152.472341,0.0002725,7]
[385342489,1757789446281,-151.0,0.0002725,7]
[385342490,1757789446291,-230.658461,0.0002725,7]
[385342491,1757789446300,-230.658461,0.0002725,7]
[385342492,1757789446309,-230.658461,0.0002725,7]
[385342493,1757789446318,-230.658461,0.0002725,7]
[385342494,1757789446327,-925.518111,0.0002725,7]
[385342495,1757789446337,-925.518111,0.0002725,7]
[385342496,1757789446346,-925.518111,0.0002725,7]
[385342498,1757789446356,-925.518111,0.0002725,7]
[385342499,1757789446365,-175.123952,0.0002725,7]
[385342500,1757789446375,-151.0,0.0002725,7]
[385342501,1757789446384,-175.123952,0.0002725,7]
[385342502,1757789446394,-175.123952,0.0002725,7]
[385342503,1757789446403,-175.123952,0.0002725,7]
[385342504,1757789446412,-252.923026,0.0002725,7]
[385342505,1757789446421,-252.923026,0.0002725,7]